fUST/lending_fUST_20250928
["ID","MTS","AMOUNT","RATE_DAILY","PERIOD"]
[388053125,1758994263846,-158.169004,0.0003589,30]
[388053126,1758994263855,-158.169004,0.0003589,30]
[388053127,1758994263865,-3808.87,0.0003589,9]
[388053128,1758994263875,-158.169004,0.0003589,30]
[388053129,1758994263884,-158.169004,0.0003589,30]
[388053130,1758994263892,-480.0,0.0003589,9]
[388053131,1758994263903,-480.0,0.0003589,9]
[388053132,1758994263912,-158.169004,0.0003589,30]
[388053133,1758994263921,-158.169008,0.0003589,30]
[388053134,1758994263930,-3600.11,0.0003589,9]
[388053135,1758994263940,-480.0,0.0003589,9]
[388053136,1758994263948,-720.5,0.0003589,9]
[388053137,1758994263957,-151.0,0.0003589,30]
[388053138,1758994263967,-174.997457,0.0003589,30]
[388053139,1758994263976,-151.0,0.0003589,30]
[388053140,1758994263985,-174.997457,0.0003589,30]
[388053141,1758994263995,-480.0,0.0003589,9]
[388053142,1758994264004,-480.0,0.0003589,9]
[388053143,1758994264013,-174.997457,0.0003589,30]
[388053144,1758994264023,-174.997457,0.0003589,30]
[388053145,1758994264031,-480.0,0.0003589,9]
[388053146,1758994264039,-174.997457,0.0003589,30]
[388053147,1758994264048,-174.997457,0.0003589,30]
[388053148,1758994264056,-5256.05,0.0003589,9]
[388053149,1758994264065,-174.997457,0.0003589,30]
[388053150,1758994264074,-174.997465,0.0003589,30]
[388053151,1758994264083,-480.0,0.0003589,9]
[388053152,1758994264091,-480.0,0.0003589,9]
[388053153,1758994264102,-480.0,0.0003589,9]
[388053154,1758994264112,-480.0,0.0003589,9]
[388053155,1758994264121,-480.0,0.0003589,9]
[388053156,1758994264131,-480.0,0.0003589,7]
[388053157,1758994264140,-1065.2,0.0003589,9]
[388053158,1758994264150,-7261.54,0.0003589,3]
[388053159,1758994264159,-7281.49,0.0003589,9]
[388053160,1758994264169,-480.0,0.0003589,9]
[388053161,1758994264179,-480.0,0.0003589,9]
[388053162,1758994264188,-5503.8,0.0003589,9]
[388053163,1758994264197,-151.0,0.0003589,30]
[388053164,1758994264207,-480.0,0.0003589,9]
[388053165,1758994264217,-151.0,0.0003589,30]
[388053166,1758994264226,-480.0,0.0003589,9]
[388053167,1758994264236,-4195.5,0.0003589,9]
[388053168,1758994264248,-480.0,0.0003589,9]
[388053169,1758994264257,-151.0,0.0003589,30]
[388053170,1758994264266,-151.0,0.0003589,30]
[388053171,1758994264277,-2557.08,0.0003589,9]
[388053172,1758994264286,-713.43,0.0003589,9]
[388053173,1758994264295,-595.32,0.0003589,9]
[388053174,1758994264304,-1395.04,0.0003589,9]
[388053175,1758994264314,-480.0,0.0003589,9]
[388053176,1758994264323,-1343.26,0.0003589,9]
[388053177,1758994264334,-480.0,0.0003589,9]
[388053178,1758994264345,-3339.87,0.0003589,9]
[388053179,1758994264561,-24192.44,0.0003589,9]
[388053180,1758994264571,-480.0,0.0003589,9]
[388053181,1758994264582,-660.49,0.0003589,9]
[388053182,1758994264592,-480.0,0.0003589,9]
[388053183,1758994264602,-480.0,0.0003589,9]
[388053184,1758994264612,-5132.79,0.0003589,9]
[388053185,1758994264622,-2250.62,0.0003589,9]
[388053186,1758994264631,-480.0,0.0003589,9]
[388053187,1758994264644,-480.0,0.0003589,9]
[388053188,1758994264654,-480.0,0.0003589,9]
[388053189,1758994264663,-480.0,0.0003589,9]
[388053190,1758994264673,-501.78,0.0003589,9]
[388053191,1758994264685,-480.0,0.0003589,9]
[388053192,1758994264695,-4314.54,0.0003589,9]
[388053193,1758994264704,-3924.9,0.0003589,9]
[388053194,1758994264715,-557.99,0.0003589,9]
[388053195,1758994264725,-480.0,0.0003589,9]
[388053196,1758994264734,-480.0,0.0003589,9]
[388053197,1758994264744,-910.08,0.0003589,9]
[388053198,1758994264753,-873.81,0.0003589,9]
[388053199,1758994264762,-151.0,0.0003589,30]
[388053200,1758994264772,-151.0,0.0003589,30]
[388053201,1758994264782,-480.0,0.0003589,9]
[388053202,1758994264791,-151.0,0.0003589,30]
[388053203,1758994264800,-151.0,0.0003589,30]
[388053204,1758994264810,-655.62,0.0003589,9]
[388053205,1758994264819,-5902.52,0.0003589,9]
[388053206,1758994264828,-1046.33,0.0003589,9]
[388053207,1758994264837,-486.86,0.0003589,9]
[388053208,1758994264848,-480.0,0.0003589,9]
[388053209,1758994264857,-2948.89,0.0003589,9]
[388053210,1758994264867,-480.0,0.0003589,9]
[388053211,1758994264875,-480.0,0.0003589,9]
[388053212,1758994264885,-480.0,0.0003589,9]
[388053213,1758994264894,-1394.0,0.0003589,9]
[388053214,1758994264903,-781.94,0.0003589,9]
[388053215,1758994264912,-651.68,0.0003589,9]
[388053216,1758994264922,-480.0,0.0003589,9]
[388053217,1758994264931,-608.92,0.0003589,9]
[388053218,1758994264940,-6660.0,0.0003589,9]
[388053219,1758994264950,-1000.0,0.0003589,9]
[388053220,1758994264959,-1085.98,0.0003589,9]
[388053221,1758994264968,-480.0,0.0003589,9]
[388053222,1758994264977,-862.6,0.0003589,9]
[388053223,1758994264987,-480.0,0.0003589,9]
[388053224,1758994265003,-480.0,0.0003589,9]
[388053225,1758994265012,-674.92,0.0003589,9]
[388053226,1758994265022,-480.0,0.0003589,9]
[388053227,1758994265031,-480.0,0.0003589,9]
[388053228,1758994265041,-480.0,0.0003589,9]
[388053229,1758994265050,-5679.9,0.0003589,9]
[388053230,1758994265059,-2220.57,0.0003589,9]
[388053231,1758994265069,-566.96,0.0003589,9]
[388053232,1758994265079,-480.0,0.0003589,9]
[388053233,1758994265088,-480.0,0.0003589,9]
[388053234,1758994265099,-676.52,0.0003589,9]
[388053235,1758994265108,-535.04,0.0003589,9]
[388053236,1758994265117,-480.0,0.0003589,9]
[388053237,1758994265126,-480.0,0.0003589,9]
[388053238,1758994265135,-480.0,0.0003589,9]
[388053239,1758994265144,-480.0,0.0003589,9]
[388053240,1758994265153,-480.0,0.0003589,9]
[388053241,1758994265163,-6540.42,0.0003589,9]
[388053242,1758994265172,-480.0,0.0003589,9]
[388053243,1758994265181,-480.0,0.0003589,9]
[388053244,1758994265191,-480.0,0.0003589,9]
[388053245,1758994265201,-480.0,0.0003589,9]
[388053246,1758994265210,-1430.6,0.0003589,9]
[388053247,1758994265219,-480.0,0.0003589,9]
[388053248,1758994265229,-480.0,0.0003589,9]
[388053249,1758994265238,-480.0,0.0003589,9]
[388053250,1758994265248,-3400.91,0.0003589,9]
[388053251,1758994265257,-480.0,0.0003589,9]
[388053252,1758994265266,-480.0,0.0003589,9]
[388053253,1758994265276,-1039.32,0.0003589,9]
[388053254,1758994265285,-480.0,0.0003589,9]
[388053255,1758994265295,-480.0,0.0003589,9]
[388053256,1758994265304,-590.07,0.0003589,9]
[388053257,1758994265314,-2165.68,0.0003589,9]
[388053258,1758994265323,-585.9,0.0003589,9]
[388053259,1758994265332,-432.96996983,0.0003589,9]
[388053260,1758994265341,-480.0,0.0003589,9]
[388053261,1758994265352,-8879.65,0.0003589,9]
[388053262,1758994265361,-480.0,0.0003589,9]
[388053263,1758994265371,-480.0,0.0003589,9]
[388053264,1758994265380,-480.0,0.0003589,9]
[388053265,1758994265390,-480.0,0.0003589,9]
[388053266,1758994265399,-480.0,0.0003589,9]
[388053267,1758994265409,-12414.04,0.0003589,9]
[388053268,1758994265418,-480.0,0.0003589,9]
[388053269,1758994265427,-11922.12,0.0003589,9]
[388053270,1758994265436,-1103.65,0.0003589,9]
[388053271,1758994265446,-480.0,0.0003589,9]
[388053272,1758994265455,-252.88163633,0.0003589,9]
[388053273,1758994265587,-500.0,0.0003589,9]
[388053274,1758994265595,-480.0,0.0003589,9]
[388053275,1758994265605,-298.54681329,0.0003589,9]
[388053276,1758994265614,-480.0,0.0003589,9]
[388053277,1758994265623,-2313.45,0.0003589,9]
[388053278,1758994265632,-3440.58,0.0003589,9]
[388053279,1758994265643,-667.79,0.0003589,9]
[388053280,1758994265653,-480.0,0.0003589,9]
[388053281,1758994265662,-1943.98,0.0003589,9]
[388053282,1758994265670,-480.0,0.0003589,9]
[388053283,1758994265679,-724.44,0.0003589,9]
[388053284,1758994265688,-480.0,0.0003589,9]
[388053285,1758994265696,-1351.09,0.0003589,9]
[388053286,1758994265705,-902.22,0.0003589,9]
[388053287,1758994265715,-859.97,0.0003589,9]
[388053288,1758994265724,-652.35,0.0003589,9]
[388053289,1758994265733,-970.85,0.0003589,9]
[388053290,1758994265743,-480.0,0.0003589,9]
[388053291,1758994265751,-480.0,0.0003589,9]
[388053292,1758994265760,-3231.52,0.0003589,9]
[388053293,1758994265770,-1579.73,0.0003589,9]
[388053294,1758994265779,-5847.17,0.0003589,9]
[388053295,1758994265788,-5233.48,0.0003589,9]
[388053296,1758994265797,-1399.8,0.0003589,9]
[388053297,1758994265807,-2534.52,0.0003589,9]
[388053298,1758994265816,-480.0,0.0003589,9]
[388053299,1758994265827,-480.0,0.0003589,9]
[388053300,1758994265837,-509.81,0.0003589,9]
[388053301,1758994265847,-480.0,0.0003589,9]
[388053302,1758994265856,-480.0,0.0003589,9]
[388053303,1758994265865,-480.0,0.0003589,9]
[388053304,1758994265874,-3280.61,0.0003589,9]
[388053305,1758994265884,-1717.88,0.0003589,9]
[388053306,1758994265894,-480.0,0.0003589,9]
[388053307,1758994265905,-501.77,0.0003589,9]
[388053308,1758994265915,-1393.31,0.0003589,9]
[388053309,1758994265924,-480.0,0.0003589,9]
[388053310,1758994265933,-480.0,0.0003589,9]
[388053311,1758994265943,-480.0,0.0003589,9]
[388053312,1758994265952,-480.0,0.0003589,9]
[388053313,1758994265961,-480.0,0.0003589,9]
[388053314,1758994265970,-480.0,0.0003589,9]
[388053315,1758994265979,-4155.87,0.0003589,9]
[388053316,1758994265989,-480.0,0.0003589,9]
[388053317,1758994265998,-480.0,0.0003589,9]
[388053318,1758994266007,-480.0,0.0003589,9]
[388053319,1758994266017,-443.83280939,0.0003589,9]
[388053320,1758994266026,-1668.27,0.0003589,9]
[388053321,1758994266035,-480.0,0.0003589,9]
[388053322,1758994266045,-480.0,0.0003589,9]
[388053323,1758994266054,-2258.02,0.0003589,9]
[388053324,1758994266063,-480.0,0.0003589,9]
[388053325,1758994266072,-175.72195163,0.0003589,14]
[388053326,1758994266082,-480.0,0.0003589,9]
[388053327,1758994266091,-1790.05,0.0003589,9]
[388053328,1758994266102,-480.0,0.0003589,9]
[388053329,1758994266111,-480.0,0.0003589,9]
[388053330,1758994266121,-408.34290345,0.0003589,9]
[388053331,1758994266131,-480.0,0.0003589,9]
[388053332,1758994266140,-1049.63,0.0003589,9]
[388053333,1758994266149,-4211.13,0.0003589,9]
[388053334,1758994266158,-480.0,0.0003589,9]
[388053335,1758994266168,-972.4,0.0003589,9]
[388053336,1758994266177,-1822.75,0.0003589,9]
[388053337,1758994266186,-825.06,0.0003589,9]
[388053338,1758994266195,-1686.63,0.0003589,9]
[388053339,1758994266204,-548.54468897,0.0003589,9]
[388053340,1758994266214,-1363.95,0.0003589,9]
[388053341,1758994266223,-480.0,0.0003589,9]
[388053342,1758994266232,-480.0,0.0003589,9]
[388053343,1758994266241,-480.0,0.0003589,9]
[388053344,1758994266251,-732.67,0.0003589,9]
[388053345,1758994266260,-480.0,0.0003589,9]
[388053346,1758994266270,-481.53,0.0003589,9]
[388053347,1758994266279,-480.0,0.0003589,2]
[388053348,1758994266289,-480.0,0.0003589,9]
[388053349,1758994266298,-480.0,0.0003589,9]
[388053350,1758994266308,-480.0,0.0003589,9]
[388053351,1758994266318,-480.0,0.0003589,9]
[388053352,1758994266327,-480.0,0.0003589,9]
[388053353,1758994266339,-990.05,0.0003589,9]
[388053354,1758994266351,-480.0,0.0003589,9]
[388053355,1758994266360,-1605.12,0.0003589,9]
[388053356,1758994266370,-480.0,0.0003589,9]
[388053357,1758994266380,-480.0,0.0003589,9]
[388053358,1758994266390,-480.0,0.0003589,9]
[388053359,1758994266399,-586.5092015,0.0003589,30]
[388053360,1758994266409,-250.0,0.000359,14]
[388053361,1758994266419,-250.0,0.000359,14]
[388053362,1758994266428,-250.0,0.000359,14]
[388053363,1758994266438,-153.7,0.000359,14]
[388053364,1758994266447,-1981.38,0.000359,14]
[388053365,1758994266457,-151.0,0.00035924,5]
[388053366,1758994266466,-151.0,0.00035924,5]
[388053367,1758994266476,-151.0,0.00035924,5]
[388053368,1758994266490,-463.0,0.00035924,5]
[388053369,1758994266500,-151.0,0.00035924,5]
[388053370,1758994266509,-500.0,0.00035981,5]
[388053371,1758994266519,-1000.0,0.00036,30]
[388053372,1758994266529,-200.0,0.00036,120]
[388053373,1758994266538,-233.76631357,0.00036,3]
[388053374,1758994266548,-160.0,0.00036116,30]
[388053375,1758994266558,-151.0,0.00036154,30]
[388053376,1758994266567,-480.0,0.00036164,9]
[388053377,1758994266577,-480.0,0.00036164,9]
[388053378,1758994266587,-480.0,0.00036164,9]
[388053379,1758994266597,-1084.97,0.00036164,9]
[388053380,1758994266609,-480.0,0.00036164,9]
[388053381,1758994266619,-480.0,0.00036164,9]
[388053382,1758994266628,-480.0,0.00036164,9]
[388053383,1758994266641,-480.0,0.00036164,9]
[388053384,1758994266652,-214.81132898,0.00036164,9]
[388053385,1758994266662,-413.7881583,0.00036164,9]
[388053386,1758994266671,-480.0,0.00036164,9]
[388053387,1758994266682,-480.0,0.00036164,9]
[388053388,1758994266692,-480.0,0.00036164,9]
[388053389,1758994266701,-480.0,0.00036164,9]
[388053390,1758994266711,-480.0,0.00036164,9]
[388053391,1758994266722,-480.0,0.00036164,9]
[388053392,1758994266732,-480.0,0.00036164,9]
[388053393,1758994266741,-480.0,0.00036164,9]
[388053394,1758994266751,-742.65,0.00036164,9]
[388053395,1758994266760,-480.0,0.00036164,9]
[388053396,1758994266769,-480.0,0.00036164,9]
[388053397,1758994266779,-480.0,0.00036164,9]
[388053398,1758994266789,-480.0,0.00036164,9]
[388053399,1758994266798,-480.0,0.00036164,9]
[388053400,1758994266809,-480.0,0.00036164,9]
[388053401,1758994266818,-480.0,0.00036164,9]
[388053402,1758994266827,-480.0,0.00036164,9]
[388053403,1758994266837,-789.69,0.00036164,9]
[388053404,1758994266846,-480.0,0.00036164,9]
[388053405,1758994266856,-480.0,0.00036164,9]
[388053406,1758994266866,-480.0,0.00036164,9]
[388053407,1758994266876,-833.25,0.00036164,9]
[388053408,1758994266886,-366.41657662,0.00036164,9]
[388053409,1758994266895,-480.0,0.00036164,9]
[388053410,1758994266904,-480.0,0.00036164,9]
[388053411,1758994266914,-480.0,0.00036164,9]
[388053412,1758994266923,-480.0,0.00036164,9]
[388053413,1758994266933,-582.79238427,0.00036164,9]
[388053414,1758994266942,-480.0,0.00036164,9]
[388053415,1758994266952,-480.0,0.00036164,9]
[388053416,1758994266962,-480.0,0.00036164,9]
[388053417,1758994266971,-480.0,0.00036164,9]
[388053418,1758994266981,-480.0,0.00036164,9]
[388053419,1758994266990,-480.0,0.00036164,9]
[388053420,1758994267000,-480.0,0.00036164,9]
[388053421,1758994267011,-793.85,0.00036164,9]
[388053422,1758994267020,-480.0,0.00036164,9]
[388053423,1758994267029,-480.0,0.00036164,9]
[388053424,1758994267039,-480.0,0.00036164,9]
[388053425,1758994267048,-157.2061631,0.00036164,9]
[388053426,1758994267057,-480.0,0.00036164,9]
[388053427,1758994267067,-480.0,0.00036164,9]
[388053428,1758994267077,-480.0,0.00036164,9]
[388053429,1758994267089,-480.0,0.00036164,9]
[388053430,1758994267099,-480.0,0.00036164,9]
[388053431,1758994267109,-480.0,0.00036164,9]
[388053432,1758994267118,-480.0,0.00036164,9]
[388053433,1758994267128,-653.79,0.00036164,9]
[388053434,1758994267136,-480.0,0.00036164,9]
[388053435,1758994267145,-480.0,0.00036164,9]
[388053436,1758994267155,-579.13,0.00036164,9]
[388053437,1758994267164,-480.0,0.00036164,9]
[388053438,1758994267173,-480.0,0.00036164,9]
[388053439,1758994267182,-480.0,0.00036164,9]
[388053440,1758994267191,-620.25,0.00036164,9]
[388053441,1758994267200,-480.0,0.00036164,9]
[388053442,1758994267210,-2059.03,0.00036164,9]
[388053443,1758994267219,-407.37075356,0.00036164,9]
[388053444,1758994267228,-480.0,0.00036164,9]
[388053445,1758994267238,-1268.43,0.00036164,9]
[388053446,1758994267247,-480.0,0.00036164,9]
[388053447,1758994267256,-480.0,0.00036164,9]
[388053448,1758994267265,-480.0,0.00036164,9]
[388053449,1758994267274,-606.29,0.00036164,9]
[388053450,1758994267283,-480.0,0.00036164,9]
[388053451,1758994267293,-480.0,0.00036164,9]
[388053452,1758994267304,-480.0,0.00036164,9]
[388053453,1758994267314,-1560.16,0.00036164,9]
[388053454,1758994267323,-1351.46,0.00036164,9]
[388053455,1758994267332,-480.0,0.00036164,9]
[388053456,1758994267341,-516.73,0.00036164,9]
[388053457,1758994267351,-480.0,0.00036164,9]
[388053458,1758994267361,-480.0,0.00036164,9]
[388053459,1758994267370,-480.0,0.00036164,9]
[388053460,1758994267379,-480.0,0.00036164,9]
[388053461,1758994267388,-480.0,0.00036164,9]
[388053462,1758994267398,-1843.25,0.00036164,9]
[388053463,1758994267407,-842.63,0.00036164,9]
[388053464,1758994267417,-693.7,0.00036164,9]
[388053465,1758994267427,-1170.81,0.00036164,9]
[388053466,1758994267437,-480.0,0.00036164,9]
[388053467,1758994267448,-480.0,0.00036164,9]
[388053468,1758994267458,-519.15,0.00036164,9]
[388053469,1758994267467,-480.0,0.00036164,9]
[388053470,1758994267476,-480.0,0.00036164,9]
[388053471,1758994267486,-551.54,0.00036164,9]
[388053472,1758994267495,-484.18745025,0.00036164,9]
[388053473,1758994267504,-480.0,0.00036164,9]
[388053474,1758994267513,-480.0,0.00036164,9]
[388053475,1758994267523,-801.56,0.00036164,9]
[388053476,1758994267533,-480.0,0.00036164,9]
[388053477,1758994267543,-480.0,0.00036164,9]
[388053478,1758994267552,-480.0,0.00036164,9]
[388053479,1758994267561,-611.79,0.00036164,9]
[388053480,1758994267571,-480.0,0.00036164,9]
[388053481,1758994267580,-480.0,0.00036164,9]
[388053482,1758994267589,-480.0,0.00036164,9]
[388053483,1758994267599,-480.0,0.00036164,9]
[388053484,1758994267609,-480.0,0.00036164,9]
[388053485,1758994267619,-480.0,0.00036164,9]
[388053486,1758994267628,-480.0,0.00036164,9]
[388053487,1758994267639,-639.55,0.00036164,9]
[388053488,1758994267652,-480.0,0.00036164,9]
[388053489,1758994267662,-480.0,0.00036164,7]
[388053490,1758994267672,-480.0,0.00036164,9]
[388053491,1758994267681,-480.0,0.00036164,9]
[388053492,1758994267693,-480.0,0.00036164,9]
[388053493,1758994267702,-480.0,0.00036164,9]
[388053494,1758994267711,-619.33,0.00036164,9]
[388053495,1758994267721,-484.4395671,0.00036164,9]
[388053496,1758994267731,-480.0,0.00036164,9]
[388053497,1758994267740,-480.0,0.00036164,9]
[388053498,1758994267750,-480.0,0.00036164,9]
[388053499,1758994267759,-480.0,0.00036164,9]
[388053500,1758994267769,-1155.59,0.00036164,9]
[388053501,1758994267895,-480.0,0.00036164,9]
[388053502,1758994267904,-480.0,0.00036164,9]
[388053503,1758994267913,-857.23,0.00036164,9]
[388053504,1758994267923,-480.0,0.00036164,9]
[388053505,1758994267932,-480.0,0.00036164,9]
[388053506,1758994267943,-480.0,0.00036164,9]
[388053507,1758994267952,-480.0,0.00036164,9]
[388053508,1758994267962,-480.0,0.00036164,9]
[388053509,1758994267971,-480.0,0.00036164,9]
[388053510,1758994267981,-480.0,0.00036164,9]
[388053511,1758994267990,-480.0,0.00036164,9]
[388053512,1758994267999,-480.0,0.00036164,9]
[388053513,1758994268008,-480.0,0.00036164,9]
[388053514,1758994268018,-480.0,0.00036164,9]
[388053515,1758994268027,-480.0,0.00036164,9]
[388053516,1758994268036,-539.98314783,0.00036164,9]
[388053517,1758994268046,-377.46566026,0.00036164,9]
[388053518,1758994268055,-480.0,0.00036164,9]
[388053519,1758994268066,-480.0,0.00036164,9]
[388053520,1758994268074,-480.0,0.00036164,9]
[388053521,1758994268082,-480.0,0.00036164,9]
[388053522,1758994268091,-480.0,0.00036164,9]
[388053523,1758994268099,-480.0,0.00036164,9]
[388053524,1758994268109,-988.57,0.00036164,9]
[388053525,1758994268119,-480.0,0.00036164,9]
[388053526,1758994268128,-480.0,0.00036164,9]
[388053527,1758994268138,-480.0,0.00036164,9]
[388053528,1758994268147,-480.0,0.00036164,9]
[388053529,1758994268157,-480.0,0.00036164,9]
[388053530,1758994268167,-806.8,0.00036164,9]
[388053531,1758994268176,-480.0,0.00036164,9]
[388053532,1758994268185,-480.0,0.00036164,9]
[388053533,1758994268195,-480.0,0.00036164,9]
[388053534,1758994268204,-480.0,0.00036164,9]
[388053535,1758994268213,-480.0,0.00036164,9]
[388053536,1758994268223,-728.19,0.00036164,9]
[388053537,1758994268232,-480.0,0.00036164,9]
[388053538,1758994268242,-1199.9,0.00036164,9]
[388053539,1758994268252,-521.83,0.00036164,9]
[388053540,1758994268261,-480.0,0.00036164,9]
[388053541,1758994268271,-934.81,0.00036164,9]
[388053542,1758994268281,-480.0,0.00036164,9]
[388053543,1758994268290,-480.0,0.00036164,9]
[388053544,1758994268301,-671.16,0.00036164,9]
[388053545,1758994268311,-844.89,0.00036164,9]
[388053546,1758994268321,-480.0,0.00036164,9]
[388053547,1758994268331,-480.0,0.00036164,9]
[388053548,1758994268341,-924.28,0.00036164,9]
[388053549,1758994268351,-1097.09,0.00036164,9]
[388053550,1758994268361,-480.0,0.00036164,9]
[388053551,1758994268371,-244.99013106,0.00036164,9]
[388053552,1758994268380,-502.0005782,0.00036164,9]
[388053553,1758994268389,-480.0,0.00036164,9]
[388053554,1758994268399,-480.0,0.00036164,9]
[388053555,1758994268409,-480.0,0.00036164,7]
[388053556,1758994268418,-480.0,0.00036164,9]
[388053557,1758994268428,-1092.41,0.00036164,9]
[388053558,1758994268437,-541.61,0.00036164,9]
[388053559,1758994268447,-2302.64,0.00036164,9]
[388053560,1758994268456,-700.03,0.00036164,9]
[388053561,1758994268466,-502.12472415,0.00036164,9]
[388053562,1758994268475,-1242.26,0.00036164,9]
[388053563,1758994268484,-480.0,0.00036164,9]
[388053564,1758994268494,-504.76262577,0.00036164,9]
[388053565,1758994268504,-480.0,0.00036164,9]
[388053566,1758994268513,-916.57,0.00036164,9]
[388053567,1758994268522,-480.0,0.00036164,9]
[388053568,1758994268531,-2930.19,0.00036164,9]
[388053569,1758994268541,-480.0,0.00036164,9]
[388053570,1758994268550,-480.0,0.00036164,9]
[388053571,1758994268560,-480.0,0.00036164,9]
[388053572,1758994268569,-480.0,0.00036164,9]
[388053573,1758994268579,-480.0,0.00036164,9]
[388053574,1758994268588,-881.1,0.00036164,9]
[388053575,1758994268598,-492.38997584,0.00036164,9]
[388053576,1758994268607,-520.0,0.00036164,3]
[388053577,1758994268617,-480.0,0.00036164,9]
[388053578,1758994268626,-480.52094518,0.00036164,9]
[388053579,1758994268636,-480.0,0.00036164,9]
[388053580,1758994268649,-480.0,0.00036164,9]
[388053581,1758994268659,-480.0,0.00036164,9]
[388053582,1758994268669,-480.0,0.00036164,9]
[388053583,1758994268679,-480.0,0.00036164,9]
[388053584,1758994268688,-922.29,0.00036164,9]
[388053585,1758994268697,-480.0,0.00036164,9]
[388053586,1758994268706,-480.0,0.00036164,9]
[388053587,1758994268716,-480.0,0.00036164,9]
[388053588,1758994268725,-1647.96,0.00036164,9]
[388053589,1758994268735,-1075.35,0.00036164,9]
[388053590,1758994268744,-1002.1,0.00036164,9]
[388053591,1758994268754,-614.74,0.00036164,9]
[388053592,1758994268762,-480.0,0.00036164,9]
[388053593,1758994268771,-1314.53,0.00036164,9]
[388053594,1758994268781,-480.0,0.00036164,9]
[388053595,1758994268790,-480.0,0.00036164,9]
[388053596,1758994268798,-480.0,0.00036164,9]
[388053597,1758994268807,-480.0,0.00036164,9]
[388053598,1758994268816,-480.0,0.00036164,9]
[388053599,1758994268825,-918.52,0.00036164,9]
[388053600,1758994268834,-206.60014231,0.00036164,9]
[388053601,1758994268843,-541.29,0.00036164,9]
[388053602,1758994268853,-488.18743789,0.00036164,9]
[388053603,1758994268862,-1637.11,0.00036164,9]
[388053604,1758994268871,-1000.0,0.00036164,9]
[388053605,1758994268880,-480.0,0.00036164,9]
[388053606,1758994268889,-480.0,0.00036164,9]
[388053607,1758994268898,-480.0,0.00036164,9]
[388053608,1758994268907,-480.0,0.00036164,9]
[388053609,1758994268916,-1335.18,0.00036164,9]
[388053610,1758994268925,-480.0,0.00036164,9]
[388053611,1758994268934,-480.0,0.00036164,9]
[388053612,1758994268944,-580.67977744,0.00036164,9]
[388053613,1758994268953,-491.97602895,0.00036164,9]
[388053614,1758994268962,-531.39,0.00036164,9]
[388053615,1758994268972,-711.96,0.00036164,9]
[388053616,1758994268981,-510.85785787,0.00036164,9]
[388053617,1758994268991,-1092.25,0.00036164,9]
[388053618,1758994269000,-480.0,0.00036164,9]
[388053619,1758994269009,-480.0,0.00036164,9]
[388053620,1758994269019,-480.0,0.00036164,9]
[388053621,1758994269027,-565.63163288,0.00036164,9]
[388053622,1758994269036,-480.0,0.00036164,9]
[388053623,1758994269045,-923.57,0.00036164,9]
[388053624,1758994269055,-480.0,0.00036164,9]